[Event "Late-Titled-Tuesday-Blitz-April-23-2024"]
[Site "Chess.com"]
[Date "2024.04.23"]
[Round "4"]
[White "TheFireChess"]
[Black "expii"]
[Result "1-0"]
[WhiteElo "2421"]
[BlackElo "2180"]
[TimeControl "180+1"]
[EndTime "14:38:55 PDT"]
[Termination "TheFireChess won by checkmate"]

1. e4 {[%clk 0:03:00]} 1... c5 {[%clk 0:02:54.4]} 2. Nf3 {[%clk 0:02:58.8]} 2...
d6 {[%clk 0:02:55]} 3. d4 {[%clk 0:02:58.5]} 3... cxd4 {[%clk 0:02:55.9]} 4.
Qxd4 {[%clk 0:02:58.6]} 4... Nc6 {[%clk 0:02:55.3]} 5. Bb5 {[%clk 0:02:58.8]}
5... Bd7 {[%clk 0:02:55.7]} 6. Bxc6 {[%clk 0:02:58.6]} 6... Bxc6 {[%clk
0:02:56.6]} 7. Nc3 {[%clk 0:02:59.2]} 7... Nf6 {[%clk 0:02:54]} 8. Bg5 {[%clk
0:02:59.5]} 8... e6 {[%clk 0:02:50.2]} 9. O-O-O {[%clk 0:02:56.3]} 9... Be7
{[%clk 0:02:46.9]} 10. h4 {[%clk 0:02:56.7]} 10... O-O {[%clk 0:02:41.1]} 11. h5
{[%clk 0:02:50.3]} 11... h6 {[%clk 0:02:40.7]} 12. Be3 {[%clk 0:02:49.2]} 12...
Rc8 {[%clk 0:02:32.8]} 13. Qxa7 {[%clk 0:02:44.5]} 13... Nxe4 {[%clk 0:02:31.4]}
14. Bb6 {[%clk 0:02:31.2]} 14... Qe8 {[%clk 0:02:19.2]} 15. Qa5 {[%clk
0:02:26.3]} 15... Ra8 {[%clk 0:02:15.4]} 16. Qb4 {[%clk 0:02:25.4]} 16... Nxc3
{[%clk 0:02:13.1]} 17. Qxc3 {[%clk 0:02:24.1]} 17... Rxa2 {[%clk 0:02:11.9]} 18.
Bd4 {[%clk 0:02:22.7]} 18... e5 {[%clk 0:01:53.6]} 19. Be3 {[%clk 0:02:21.8]}
19... Bxf3 {[%clk 0:01:47.2]} 20. gxf3 {[%clk 0:02:21.2]} 20... Qc6 {[%clk
0:01:45.3]} 21. Rhg1 {[%clk 0:02:13.9]} 21... Qxc3 {[%clk 0:01:41.3]} 22. bxc3
{[%clk 0:02:14.8]} 22... Kh7 {[%clk 0:01:37.4]} 23. Kd2 {[%clk 0:02:14.3]} 23...
Ra4 {[%clk 0:01:31]} 24. Rb1 {[%clk 0:02:13.1]} 24... Rh4 {[%clk 0:01:30.5]} 25.
Rxb7 {[%clk 0:02:12.2]} 25... Bf6 {[%clk 0:01:30.1]} 26. Rd7 {[%clk 0:02:09]}
26... Rxh5 {[%clk 0:01:29.1]} 27. Rxd6 {[%clk 0:02:08.5]} 27... Rh3 {[%clk
0:01:27.6]} 28. Rg3 {[%clk 0:02:05.2]} 28... Rh2 {[%clk 0:01:24.6]} 29. c4
{[%clk 0:02:04.7]} 29... Bg5 {[%clk 0:01:22.8]} 30. Bxg5 {[%clk 0:01:52.1]}
30... hxg5 {[%clk 0:01:23.7]} 31. Ke3 {[%clk 0:01:50.2]} 31... f6 {[%clk
0:01:22.7]} 32. Rg4 {[%clk 0:01:42.5]} 32... Rh1 {[%clk 0:01:21.2]} 33. c5
{[%clk 0:01:39.2]} 33... Rc8 {[%clk 0:01:15.9]} 34. c6 {[%clk 0:01:36.6]} 34...
Rc1 {[%clk 0:01:14.1]} 35. Kd2 {[%clk 0:01:36.2]} 35... Ra1 {[%clk 0:01:11]} 36.
Rc4 {[%clk 0:01:35]} 36... Ra6 {[%clk 0:01:10.8]} 37. Kc3 {[%clk 0:01:33.3]}
37... Ra3+ {[%clk 0:01:03]} 38. Kb4 {[%clk 0:01:31.9]} 38... Rxf3 {[%clk
0:01:02.8]} 39. c7 {[%clk 0:01:32]} 39... Rxf2 {[%clk 0:01:03.1]} 40. Rd8 {[%clk
0:01:31.7]} 40... Rxc7 {[%clk 0:01:01]} 41. Rxc7 {[%clk 0:01:32.6]} 41... g4
{[%clk 0:01:01.6]} 42. c4 {[%clk 0:01:32.4]} 42... g3 {[%clk 0:01:01.6]} 43.
Rdd7 {[%clk 0:01:32.2]} 43... g2 {[%clk 0:00:57.1]} 44. Rxg7+ {[%clk 0:01:32.4]}
44... Kh6 {[%clk 0:00:57.4]} 45. c5 {[%clk 0:01:29]} 45... Kh5 {[%clk
0:00:52.3]} 46. Rg8 {[%clk 0:01:24.8]} 46... Rf4+ {[%clk 0:00:52.1]} 47. Kb5
{[%clk 0:01:22.4]} 47... Rg4 {[%clk 0:00:52]} 48. Rh7# {[%clk 0:01:21.6]} 1-0

[Event "Late-Titled-Tuesday-Blitz-April-23-2024"]
[Site "Chess.com"]
[Date "2024.04.23"]
[Round "4"]
[White "andrew-blr"]
[Black "DrVelja"]
[Result "0-1"]
[WhiteElo "2616"]
[BlackElo "2977"]
[TimeControl "180+1"]
[EndTime "14:38:56 PDT"]
[Termination "DrVelja won by resignation"]

1. d4 {[%clk 0:03:00.9]} 1... Nf6 {[%clk 0:02:53.7]} 2. c4 {[%clk 0:03:00.5]}
2... e6 {[%clk 0:02:53.4]} 3. Nc3 {[%clk 0:03:00.3]} 3... Bb4 {[%clk 0:02:52.6]}
4. a3 {[%clk 0:03:00.5]} 4... Bxc3+ {[%clk 0:02:51.1]} 5. bxc3 {[%clk
0:03:01.4]} 5... b6 {[%clk 0:02:45.6]} 6. f3 {[%clk 0:03:00.2]} 6... Nc6 {[%clk
0:02:42]} 7. e4 {[%clk 0:02:59.9]} 7... Ba6 {[%clk 0:02:41]} 8. e5 {[%clk
0:02:59.4]} 8... Ng8 {[%clk 0:02:36.9]} 9. f4 {[%clk 0:02:59.3]} 9... Na5 {[%clk
0:02:37]} 10. Nf3 {[%clk 0:02:58.8]} 10... Ne7 {[%clk 0:02:35.1]} 11. c5 {[%clk
0:02:47]} 11... Bxf1 {[%clk 0:02:32.8]} 12. Rxf1 {[%clk 0:02:47.3]} 12... Rb8
{[%clk 0:02:24.8]} 13. cxb6 {[%clk 0:02:45.4]} 13... axb6 {[%clk 0:02:18.8]} 14.
a4 {[%clk 0:02:41.4]} 14... d5 {[%clk 0:02:16.9]} 15. Ba3 {[%clk 0:02:31.5]}
15... Qd7 {[%clk 0:02:13.7]} 16. Bxe7 {[%clk 0:02:24.9]} 16... Qxe7 {[%clk
0:02:12.8]} 17. Kf2 {[%clk 0:02:08.3]} 17... Nc4 {[%clk 0:02:13]} 18. g3 {[%clk
0:01:38]} 18... O-O {[%clk 0:02:07.7]} 19. Nd2 {[%clk 0:01:37.3]} 19... Na5
{[%clk 0:02:01]} 20. Kg2 {[%clk 0:01:35.8]} 20... c5 {[%clk 0:01:58.8]} 21. f5
{[%clk 0:01:35.3]} 21... exf5 {[%clk 0:01:44.4]} 22. Rxf5 {[%clk 0:01:34.2]}
22... Rbc8 {[%clk 0:01:45.1]} 23. Qg4 {[%clk 0:01:25]} 23... cxd4 {[%clk
0:01:39.4]} 24. cxd4 {[%clk 0:01:25]} 24... Rc2 {[%clk 0:01:39.7]} 25. Rf2
{[%clk 0:01:24.7]} 25... Qb4 {[%clk 0:01:31]} 26. Qf4 {[%clk 0:01:09.2]} 26...
Nc6 {[%clk 0:01:26.2]} 27. e6 {[%clk 0:00:50.2]} 27... fxe6 {[%clk 0:01:20.7]}
0-1

[Event "Late-Titled-Tuesday-Blitz-April-23-2024"]
[Site "Chess.com"]
[Date "2024.04.23"]
[Round "4"]
[White "Giantgoogachess"]
[Black "yaguigor"]
[Result "0-1"]
[WhiteElo "2299"]
[BlackElo "2571"]
[TimeControl "180+1"]
[EndTime "14:38:57 PDT"]
[Termination "yaguigor won by resignation"]

1. d4 {[%clk 0:03:00.9]} 1... Nf6 {[%clk 0:02:57.6]} 2. c4 {[%clk 0:03:01.5]}
2... e6 {[%clk 0:02:57.2]} 3. Nc3 {[%clk 0:03:01.3]} 3... d5 {[%clk 0:02:55.9]}
4. cxd5 {[%clk 0:03:01.3]} 4... exd5 {[%clk 0:02:55.6]} 5. Bg5 {[%clk
0:03:01.4]} 5... c6 {[%clk 0:02:55.2]} 6. e3 {[%clk 0:03:01.6]} 6... h6 {[%clk
0:02:53.1]} 7. Bh4 {[%clk 0:03:01.6]} 7... Be7 {[%clk 0:02:50.2]} 8. Bd3 {[%clk
0:03:02]} 8... Nbd7 {[%clk 0:02:46.6]} 9. Nge2 {[%clk 0:03:00.9]} 9... Nh5
{[%clk 0:02:41.4]} 10. Bxe7 {[%clk 0:03:00.5]} 10... Qxe7 {[%clk 0:02:41.8]} 11.
Qc2 {[%clk 0:03:01.2]} 11... Nb6 {[%clk 0:02:39]} 12. O-O-O {[%clk 0:03:00.4]}
12... Be6 {[%clk 0:02:36.5]} 13. Kb1 {[%clk 0:03:01]} 13... O-O-O {[%clk
0:02:34.2]} 14. h3 {[%clk 0:03:01.2]} 14... g6 {[%clk 0:02:33.2]} 15. Ka1 {[%clk
0:03:00.7]} 15... Kb8 {[%clk 0:02:31.6]} 16. Rb1 {[%clk 0:03:01.3]} 16... Rc8
{[%clk 0:02:28.8]} 17. Rhc1 {[%clk 0:03:01.7]} 17... Ng7 {[%clk 0:02:26.4]} 18.
b4 {[%clk 0:03:01.4]} 18... Bf5 {[%clk 0:02:25.2]} 19. Bxf5 {[%clk 0:02:59.9]}
19... Nxf5 {[%clk 0:02:24.3]} 20. Na4 {[%clk 0:03:00.6]} 20... Nc4 {[%clk
0:02:22.7]} 21. Nb2 {[%clk 0:02:56.8]} 21... Nxb2 {[%clk 0:02:19]} 22. Qxb2
{[%clk 0:02:56.4]} 22... Nd6 {[%clk 0:02:19.6]} 23. Nc3 {[%clk 0:02:52.6]} 23...
Nc4 {[%clk 0:02:14.4]} 24. Qe2 {[%clk 0:02:50]} 24... b5 {[%clk 0:02:11.6]} 25.
a4 {[%clk 0:02:42.4]} 25... a6 {[%clk 0:02:10.6]} 26. a5 {[%clk 0:02:42]} 26...
f5 {[%clk 0:02:08.6]} 27. Re1 {[%clk 0:02:38.5]} 27... Rce8 {[%clk 0:02:07]} 28.
Ka2 {[%clk 0:02:36.4]} 28... h5 {[%clk 0:02:02.4]} 29. Kb3 {[%clk 0:02:18.4]}
29... h4 {[%clk 0:01:57.2]} 30. Rbd1 {[%clk 0:02:18]} 30... g5 {[%clk
0:01:54.3]} 31. Qf3 {[%clk 0:02:17.3]} 31... Qf6 {[%clk 0:01:53.5]} 32. Ne2
{[%clk 0:02:11.5]} 32... Kb7 {[%clk 0:01:48.7]} 33. Kc3 {[%clk 0:02:11.1]} 33...
Re6 {[%clk 0:01:46]} 34. g4 {[%clk 0:02:01.6]} 34... Rf8 {[%clk 0:01:43.6]} 35.
Nc1 {[%clk 0:01:27.3]} 35... fxg4 {[%clk 0:01:36.1]} 36. Qxg4 {[%clk 0:01:27.2]}
36... Qf5 {[%clk 0:01:32.2]} 37. Rg1 {[%clk 0:01:09.9]} 37... Qxg4 {[%clk
0:01:30.1]} 38. Rxg4 {[%clk 0:01:08.7]} 38... Rxf2 {[%clk 0:01:29.9]} 39. Rxg5
{[%clk 0:01:08.1]} 39... Rxe3+ {[%clk 0:01:29.3]} 40. Nd3 {[%clk 0:01:07.1]}
40... Nb2 {[%clk 0:01:19.1]} 41. Rg7+ {[%clk 0:00:52.4]} 41... Kc8 {[%clk
0:01:17.8]} 42. Rd2 {[%clk 0:00:47.6]} 42... Rxd2 {[%clk 0:01:12.8]} 43. Kxd2
{[%clk 0:00:48.3]} 43... Rxd3+ {[%clk 0:01:11.8]} 44. Kc2 {[%clk 0:00:48.9]}
44... Rxd4 {[%clk 0:01:11.5]} 0-1

[Event "Late-Titled-Tuesday-Blitz-April-23-2024"]
[Site "Chess.com"]
[Date "2024.04.23"]
[Round "4"]
[White "KingCyber19"]
[Black "sergiochess83"]
[Result "0-1"]
[WhiteElo "2530"]
[BlackElo "2941"]
[TimeControl "180+1"]
[EndTime "14:38:59 PDT"]
[Termination "sergiochess83 won by resignation"]

1. d4 {[%clk 0:03:00.9]} 1... Nf6 {[%clk 0:02:59.6]} 2. c4 {[%clk 0:02:59.7]}
2... g6 {[%clk 0:03:00.1]} 3. Nc3 {[%clk 0:02:56.5]} 3... d5 {[%clk 0:02:59.7]}
4. cxd5 {[%clk 0:02:56.2]} 4... Nxd5 {[%clk 0:02:59.4]} 5. e4 {[%clk 0:02:56.9]}
5... Nxc3 {[%clk 0:02:59.5]} 6. bxc3 {[%clk 0:02:57.8]} 6... Bg7 {[%clk
0:02:59]} 7. Bc4 {[%clk 0:02:58.4]} 7... c5 {[%clk 0:02:58.2]} 8. Ne2 {[%clk
0:02:58.9]} 8... O-O {[%clk 0:02:58.5]} 9. O-O {[%clk 0:02:57.1]} 9... Nc6
{[%clk 0:02:59.1]} 10. Be3 {[%clk 0:02:57.1]} 10... Na5 {[%clk 0:02:54.9]} 11.
Bd3 {[%clk 0:02:54.8]} 11... b6 {[%clk 0:02:54.8]} 12. dxc5 {[%clk 0:02:45.2]}
12... Qc7 {[%clk 0:02:53.8]} 13. cxb6 {[%clk 0:02:43.7]} 13... axb6 {[%clk
0:02:54]} 14. Rb1 {[%clk 0:02:44.3]} 14... Nc4 {[%clk 0:02:50.1]} 15. Bxc4
{[%clk 0:02:05.3]} 15... Qxc4 {[%clk 0:02:51]} 16. Bxb6 {[%clk 0:01:56.5]} 16...
Qxe4 {[%clk 0:02:35.1]} 17. Ng3 {[%clk 0:01:47.7]} 17... Qc6 {[%clk 0:02:31.6]}
18. Bd4 {[%clk 0:01:41.1]} 18... e5 {[%clk 0:02:30.7]} 19. Be3 {[%clk 0:01:41]}
19... Rxa2 {[%clk 0:02:20.5]} 20. Qd3 {[%clk 0:01:18.6]} 20... Be6 {[%clk
0:02:14.7]} 21. Rfd1 {[%clk 0:01:13.4]} 21... h5 {[%clk 0:02:12.6]} 22. h3
{[%clk 0:01:04.7]} 22... h4 {[%clk 0:02:02.9]} 23. Nf1 {[%clk 0:01:04.3]} 23...
Bf5 {[%clk 0:02:01.9]} 24. Qb5 {[%clk 0:00:58.6]} 24... Qxc3 {[%clk 0:01:56.1]}
25. Rbc1 {[%clk 0:00:51.7]} 25... Qa5 {[%clk 0:01:51.7]} 26. Qc4 {[%clk
0:00:40.2]} 26... Ra4 {[%clk 0:01:45.1]} 27. Qb3 {[%clk 0:00:40.2]} 27... Be6
{[%clk 0:01:44.4]} 28. Qb7 {[%clk 0:00:36.8]} 28... Qa8 {[%clk 0:01:34.5]} 29.
Qe7 {[%clk 0:00:36.2]} 29... Re8 {[%clk 0:01:29.4]} 30. Qg5 {[%clk 0:00:33.3]}
30... Kh7 {[%clk 0:01:20.2]} 31. Nd2 {[%clk 0:00:32.4]} 31... f6 {[%clk
0:01:18.4]} 0-1

[Event "Late-Titled-Tuesday-Blitz-April-23-2024"]
[Site "Chess.com"]
[Date "2024.04.23"]
[Round "4"]
[White "xberli"]
[Black "Jahonas"]
[Result "0-1"]
[WhiteElo "2622"]
[BlackElo "2401"]
[TimeControl "180+1"]
[EndTime "14:39:01 PDT"]
[Termination "Jahonas won by resignation"]

1. Nf3 {[%clk 0:03:00.9]} 1... d5 {[%clk 0:02:59.5]} 2. d4 {[%clk 0:02:59.3]}
2... c6 {[%clk 0:02:59.9]} 3. c4 {[%clk 0:02:54.3]} 3... Nf6 {[%clk 0:02:59.8]}
4. cxd5 {[%clk 0:02:53.8]} 4... Nxd5 {[%clk 0:02:59.7]} 5. e4 {[%clk 0:02:52.1]}
5... Nc7 {[%clk 0:02:58.7]} 6. Nc3 {[%clk 0:02:51.8]} 6... Bg4 {[%clk
0:02:58.5]} 7. Be3 {[%clk 0:02:49.7]} 7... e6 {[%clk 0:02:58.8]} 8. h3 {[%clk
0:02:49]} 8... Bh5 {[%clk 0:02:57.4]} 9. g4 {[%clk 0:02:44.1]} 9... Bg6 {[%clk
0:02:57.2]} 10. Ne5 {[%clk 0:02:44.2]} 10... Nd7 {[%clk 0:02:56.6]} 11. Nxg6
{[%clk 0:02:42.6]} 11... hxg6 {[%clk 0:02:56]} 12. Bg2 {[%clk 0:02:40.3]} 12...
e5 {[%clk 0:02:43]} 13. O-O {[%clk 0:02:35.7]} 13... Bd6 {[%clk 0:02:31.3]} 14.
dxe5 {[%clk 0:02:30.6]} 14... Nxe5 {[%clk 0:02:22.6]} 15. Qe2 {[%clk 0:02:30.7]}
15... g5 {[%clk 0:02:13.9]} 16. Rad1 {[%clk 0:02:30.4]} 16... Ne6 {[%clk
0:02:05.1]} 17. Na4 {[%clk 0:02:14.9]} 17... Qe7 {[%clk 0:02:01.6]} 18. b3
{[%clk 0:02:10.6]} 18... O-O {[%clk 0:01:56.4]} 19. Nb2 {[%clk 0:02:09.7]} 19...
Rfd8 {[%clk 0:01:53.5]} 20. Nc4 {[%clk 0:02:06]} 20... Nxc4 {[%clk 0:01:50.1]}
21. Qxc4 {[%clk 0:02:06.9]} 21... Bf4 {[%clk 0:01:48.2]} 22. Qc2 {[%clk
0:01:54.5]} 22... g6 {[%clk 0:01:45.6]} 23. Rfe1 {[%clk 0:01:43]} 23... Qc7
{[%clk 0:01:41.5]} 24. Bf1 {[%clk 0:01:41.7]} 24... Qe5 {[%clk 0:01:37.5]} 25.
Bc4 {[%clk 0:01:40.3]} 25... Bxe3 {[%clk 0:01:33.2]} 26. Rxe3 {[%clk 0:01:41.2]}
26... Rxd1+ {[%clk 0:01:30.7]} 27. Qxd1 {[%clk 0:01:40.1]} 27... Rd8 {[%clk
0:01:30.9]} 28. Rd3 {[%clk 0:01:31.5]} 28... Rxd3 {[%clk 0:01:29.2]} 29. Qxd3
{[%clk 0:01:32.4]} 29... Nf4 {[%clk 0:01:24.5]} 30. Qe3 {[%clk 0:01:31.9]} 30...
b6 {[%clk 0:01:22.7]} 31. a4 {[%clk 0:01:29.7]} 31... c5 {[%clk 0:01:19.1]} 32.
Bf1 {[%clk 0:01:22]} 32... Kg7 {[%clk 0:01:14.7]} 33. f3 {[%clk 0:01:16.5]}
33... Kf6 {[%clk 0:01:11.2]} 34. Qd2 {[%clk 0:01:15.2]} 34... Qd4+ {[%clk
0:01:09.1]} 35. Qxd4+ {[%clk 0:01:12.9]} 35... cxd4 {[%clk 0:01:09]} 36. Kf2
{[%clk 0:01:13.8]} 36... Ke5 {[%clk 0:01:08.2]} 37. Ke1 {[%clk 0:01:11.9]} 37...
d3 {[%clk 0:01:06.4]} 38. Kd2 {[%clk 0:01:08.9]} 38... Kd4 {[%clk 0:01:06.5]}
39. b4 {[%clk 0:01:09.4]} 39... a5 {[%clk 0:01:05.9]} 40. bxa5 {[%clk
0:01:03.1]} 40... bxa5 {[%clk 0:01:06.1]} 41. Kd1 {[%clk 0:01:03.2]} 41... Kc3
{[%clk 0:01:03.3]} 42. Kc1 {[%clk 0:01:02.4]} 42... f6 {[%clk 0:01:01.2]} 43.
Kd1 {[%clk 0:01:01.8]} 43... Ne6 {[%clk 0:01:00.8]} 44. Kc1 {[%clk 0:00:59.1]}
44... Nc5 {[%clk 0:01:00.5]} 0-1

[Event "Late-Titled-Tuesday-Blitz-April-23-2024"]
[Site "Chess.com"]
[Date "2024.04.23"]
[Round "4"]
[White "Vladimir_2020"]
[Black "dropstoneDP"]
[Result "1/2-1/2"]
[WhiteElo "2772"]
[BlackElo "3018"]
[TimeControl "180+1"]
[EndTime "14:39:03 PDT"]
[Termination "Game drawn by repetition"]

1. Nf3 {[%clk 0:03:00.9]} 1... d5 {[%clk 0:02:58.4]} 2. g3 {[%clk 0:03:00.6]}
2... g6 {[%clk 0:02:58]} 3. Bg2 {[%clk 0:02:59.7]} 3... Bg7 {[%clk 0:02:58.6]}
4. d4 {[%clk 0:02:59.6]} 4... Nf6 {[%clk 0:02:58.6]} 5. O-O {[%clk 0:02:56.3]}
5... O-O {[%clk 0:02:58.6]} 6. c4 {[%clk 0:02:55.8]} 6... dxc4 {[%clk
0:02:59.5]} 7. Na3 {[%clk 0:02:55.1]} 7... c5 {[%clk 0:02:59.6]} 8. Nxc4 {[%clk
0:02:46.5]} 8... Be6 {[%clk 0:02:58.9]} 9. Nce5 {[%clk 0:02:30.7]} 9... cxd4
{[%clk 0:02:53.3]} 10. Qxd4 {[%clk 0:02:21.8]} 10... Qxd4 {[%clk 0:02:50.7]} 11.
Nxd4 {[%clk 0:02:21.6]} 11... Bd5 {[%clk 0:02:51.3]} 12. Rd1 {[%clk 0:02:06.7]}
12... Bxg2 {[%clk 0:02:48.9]} 13. Kxg2 {[%clk 0:02:06.9]} 13... Rc8 {[%clk
0:02:30.8]} 14. Nef3 {[%clk 0:01:40.7]} 14... Nc6 {[%clk 0:02:28.6]} 15. Bf4
{[%clk 0:01:05.5]} 15... Nd5 {[%clk 0:02:25.5]} 16. Nxc6 {[%clk 0:01:04.1]}
16... Nxf4+ {[%clk 0:02:24.6]} 17. gxf4 {[%clk 0:01:03.6]} 17... Rxc6 {[%clk
0:02:25.3]} 18. Rd2 {[%clk 0:01:03.9]} 18... Rb6 {[%clk 0:02:16.1]} 19. Rb1
{[%clk 0:00:53.5]} 19... Rc8 {[%clk 0:02:16.3]} 20. b3 {[%clk 0:00:53.1]} 20...
Bf6 {[%clk 0:02:11.6]} 21. Rbd1 {[%clk 0:00:51.6]} 21... Kg7 {[%clk 0:02:10.3]}
22. Ne1 {[%clk 0:00:45.6]} 22... a5 {[%clk 0:02:03.6]} 23. Rd5 {[%clk
0:00:43.8]} 23... a4 {[%clk 0:02:01.1]} 24. bxa4 {[%clk 0:00:41.7]} 24... Rc4
{[%clk 0:02:01.4]} 25. Nd3 {[%clk 0:00:33]} 25... Rxa4 {[%clk 0:01:58.2]} 26.
Rd2 {[%clk 0:00:33.1]} 26... Rd4 {[%clk 0:01:28.7]} 27. Rxd4 {[%clk 0:00:29.5]}
27... Bxd4 {[%clk 0:01:29.6]} 28. Rc2 {[%clk 0:00:29.5]} 28... Ra6 {[%clk
0:01:23.8]} 29. Kf3 {[%clk 0:00:27.9]} 29... b5 {[%clk 0:01:13.9]} 30. e3 {[%clk
0:00:26.3]} 30... Bf6 {[%clk 0:01:13.9]} 31. Rc5 {[%clk 0:00:26]} 31... Rxa2
{[%clk 0:01:13.6]} 32. Rxb5 {[%clk 0:00:26]} 32... Ra7 {[%clk 0:01:14.3]} 33.
Rc5 {[%clk 0:00:25.3]} 33... e6 {[%clk 0:01:14.5]} 34. Rb5 {[%clk 0:00:25.4]}
34... Rc7 {[%clk 0:01:13.6]} 35. Rc5 {[%clk 0:00:25.2]} 35... Ra7 {[%clk
0:01:14.1]} 36. Rb5 {[%clk 0:00:25.1]} 36... Rc7 {[%clk 0:01:14.7]} 37. Rc5
{[%clk 0:00:25.2]} 37... Ra7 {[%clk 0:01:15.2]} 1/2-1/2

[Event "Late-Titled-Tuesday-Blitz-April-23-2024"]
[Site "Chess.com"]
[Date "2024.04.23"]
[Round "4"]
[White "JSPrepz"]
[Black "kleber2007"]
[Result "1-0"]
[WhiteElo "2792"]
[BlackElo "2439"]
[TimeControl "180+1"]
[EndTime "14:39:03 PDT"]
[Termination "JSPrepz won by resignation"]

1. e4 {[%clk 0:03:00.9]} 1... e6 {[%clk 0:02:56.3]} 2. d4 {[%clk 0:03:00.8]}
2... d5 {[%clk 0:02:56.9]} 3. e5 {[%clk 0:03:01.4]} 3... c5 {[%clk 0:02:56.3]}
4. c3 {[%clk 0:03:02.3]} 4... Nc6 {[%clk 0:02:56.1]} 5. Nf3 {[%clk 0:03:03]}
5... Bd7 {[%clk 0:02:55.9]} 6. Bd3 {[%clk 0:03:02.8]} 6... cxd4 {[%clk
0:02:46.9]} 7. cxd4 {[%clk 0:03:03.4]} 7... Nb4 {[%clk 0:02:45.5]} 8. Be2 {[%clk
0:03:03.3]} 8... Qb6 {[%clk 0:02:39.7]} 9. Nc3 {[%clk 0:03:04.2]} 9... Nh6
{[%clk 0:02:36.5]} 10. O-O {[%clk 0:03:05.1]} 10... Nf5 {[%clk 0:02:36.2]} 11.
g4 {[%clk 0:03:05.4]} 11... Nh6 {[%clk 0:02:32]} 12. h3 {[%clk 0:03:05.5]} 12...
Be7 {[%clk 0:02:26.7]} 13. Bxh6 {[%clk 0:03:04]} 13... gxh6 {[%clk 0:02:26.3]}
14. Qd2 {[%clk 0:03:04.9]} 14... h5 {[%clk 0:02:19.8]} 15. g5 {[%clk 0:03:04.4]}
15... h4 {[%clk 0:02:13.9]} 16. Kh1 {[%clk 0:03:03.2]} 16... O-O-O {[%clk
0:02:09]} 17. a3 {[%clk 0:03:01.2]} 17... Nc6 {[%clk 0:02:05.8]} 18. b4 {[%clk
0:03:01.4]} 18... Kb8 {[%clk 0:02:05]} 19. Rac1 {[%clk 0:02:56.7]} 19... Rc8
{[%clk 0:01:46.6]} 20. Na4 {[%clk 0:02:54.8]} 20... Qd8 {[%clk 0:01:45.8]} 21.
Nc5 {[%clk 0:02:55.2]} 21... h6 {[%clk 0:01:35.4]} 22. gxh6 {[%clk 0:02:54.2]}
22... Bf8 {[%clk 0:01:35.2]} 23. b5 {[%clk 0:02:49.5]} 23... Ne7 {[%clk
0:01:31.1]} 24. Ng5 {[%clk 0:02:25.7]} 24... Bxh6 {[%clk 0:01:28.6]} 25. f4
{[%clk 0:02:24.3]} 25... Bxg5 {[%clk 0:01:25.4]} 26. fxg5 {[%clk 0:02:24.3]}
26... Nf5 {[%clk 0:01:23.8]} 27. Kh2 {[%clk 0:02:24.3]} 27... Rg8 {[%clk
0:01:09.3]} 28. a4 {[%clk 0:02:20.3]} 28... Be8 {[%clk 0:01:02.5]} 29. Bg4
{[%clk 0:02:18]} 29... Ng3 {[%clk 0:00:51.9]} 30. Rf6 {[%clk 0:02:16.2]} 30...
b6 {[%clk 0:00:41.8]} 31. Na6+ {[%clk 0:02:14.5]} 31... Kb7 {[%clk 0:00:41.8]}
32. Rxc8 {[%clk 0:02:11.9]} 32... Qxc8 {[%clk 0:00:41.7]} 33. Bf3 {[%clk
0:01:57.8]} 33... Qc4 {[%clk 0:00:36.3]} 34. Bg2 {[%clk 0:01:51.1]} 34... Qxa4
{[%clk 0:00:33.1]} 35. Nb4 {[%clk 0:01:42.8]} 35... Bxb5 {[%clk 0:00:31.9]} 36.
Rxf7+ {[%clk 0:01:41.9]} 36... Ka8 {[%clk 0:00:31.9]} 37. Qc3 {[%clk 0:01:30.8]}
37... Bc4 {[%clk 0:00:12.1]} 38. Qxc4 {[%clk 0:01:31]} 1-0

[Event "Late-Titled-Tuesday-Blitz-April-23-2024"]
[Site "Chess.com"]
[Date "2024.04.23"]
[Round "4"]
[White "Babbelbox"]
[Black "Artem_Koval"]
[Result "1/2-1/2"]
[WhiteElo "2727"]
[BlackElo "2553"]
[TimeControl "180+1"]
[EndTime "14:39:05 PDT"]
[Termination "Game drawn by repetition"]

1. d4 {[%clk 0:02:59.1]} 1... d5 {[%clk 0:02:59.8]} 2. c4 {[%clk 0:02:59.5]}
2... e6 {[%clk 0:03:00.3]} 3. Nf3 {[%clk 0:02:59.8]} 3... Nf6 {[%clk 0:03:00.4]}
4. Nc3 {[%clk 0:03:00]} 4... Be7 {[%clk 0:03:00.5]} 5. Bg5 {[%clk 0:02:59.8]}
5... O-O {[%clk 0:03:01]} 6. e3 {[%clk 0:03:00]} 6... h6 {[%clk 0:03:00.1]} 7.
Bh4 {[%clk 0:02:59.3]} 7... b6 {[%clk 0:03:00.2]} 8. Rc1 {[%clk 0:02:57.5]} 8...
Bb7 {[%clk 0:02:53.4]} 9. Bxf6 {[%clk 0:02:53.8]} 9... Bxf6 {[%clk 0:02:53.3]}
10. cxd5 {[%clk 0:02:54.3]} 10... exd5 {[%clk 0:02:52.1]} 11. Bd3 {[%clk
0:02:51.3]} 11... c5 {[%clk 0:02:49.6]} 12. O-O {[%clk 0:02:51]} 12... Nc6
{[%clk 0:02:33.5]} 13. Bb1 {[%clk 0:02:33.3]} 13... cxd4 {[%clk 0:02:16]} 14.
Nxd4 {[%clk 0:02:32.4]} 14... Nxd4 {[%clk 0:02:13.7]} 15. exd4 {[%clk
0:02:32.4]} 15... Ba6 {[%clk 0:02:06.2]} 16. Re1 {[%clk 0:02:32.3]} 16... Qd7
{[%clk 0:02:01]} 17. Qf3 {[%clk 0:02:04.3]} 17... Rfe8 {[%clk 0:01:39.7]} 18.
Nxd5 {[%clk 0:01:56.9]} 18... Bxd4 {[%clk 0:01:39.8]} 19. Red1 {[%clk
0:01:14.4]} 19... Be2 {[%clk 0:01:37.8]} 20. Rxd4 {[%clk 0:01:05.5]} 20... Bxf3
{[%clk 0:01:37.8]} 21. Nf6+ {[%clk 0:01:05.7]} 21... gxf6 {[%clk 0:01:38.7]} 22.
Rxd7 {[%clk 0:01:06.1]} 22... Bg4 {[%clk 0:01:36.9]} 23. Rd6 {[%clk 0:00:58.6]}
23... Rac8 {[%clk 0:01:33]} 24. Rf1 {[%clk 0:00:24.5]} 24... Be2 {[%clk
0:01:29]} 25. Re1 {[%clk 0:00:24.8]} 25... Bg4 {[%clk 0:01:28.1]} 26. Rf1 {[%clk
0:00:19.2]} 26... Be2 {[%clk 0:01:24]} 27. Re1 {[%clk 0:00:19.6]} 27... Bg4
{[%clk 0:00:58.5]} 28. Rf1 {[%clk 0:00:19.3]} 1/2-1/2